[Event "*** Titled Tuesday Blitz"]
[Site "Chess.com"]
[Date "2020.05.12"]
[Round "5"]
[White "fish7728"]
[Black "dopolian"]
[Result "0-1"]
[WhiteElo "2048"]
[BlackElo "2309"]
[TimeControl "180+1"]
[EndTime "10:55:43 PDT"]
[Termination "dopolian won on time"]

1. d4 {[%clk 0:03:00.9]} 1... Nf6 {[%clk 0:02:59.7]} 2. c4 {[%clk 0:03:00.1]}
2... e6 {[%clk 0:02:58.4]} 3. Nc3 {[%clk 0:02:59.6]} 3... d5 {[%clk 0:02:58.3]}
4. Bg5 {[%clk 0:02:57.9]} 4... Be7 {[%clk 0:02:58]} 5. e3 {[%clk 0:02:57.7]}
5... O-O {[%clk 0:02:57.6]} 6. Nf3 {[%clk 0:02:58]} 6... h6 {[%clk 0:02:57.7]}
7. h4 {[%clk 0:02:52.4]} 7... hxg5 {[%clk 0:02:42.7]} 8. hxg5 {[%clk 0:02:51.5]}
8... Ne4 {[%clk 0:02:30.9]} 9. Nxe4 {[%clk 0:02:29]} 9... dxe4 {[%clk
0:02:30.5]} 10. Nd2 {[%clk 0:02:28]} 10... g6 {[%clk 0:02:13.6]} 11. Nxe4 {[%clk
0:02:25.7]} 11... Kg7 {[%clk 0:01:59.6]} 12. Bd3 {[%clk 0:02:15.8]} 12... Bxg5
{[%clk 0:01:55.5]} 13. f4 {[%clk 0:02:05.9]} 13... Bf6 {[%clk 0:01:47.5]} 14.
Qf3 {[%clk 0:01:55.1]} 14... Be7 {[%clk 0:01:23.2]} 15. O-O-O {[%clk 0:01:51.7]}
15... Nd7 {[%clk 0:01:18.4]} 16. g4 {[%clk 0:01:50.7]} 16... c5 {[%clk
0:01:11.2]} 17. f5 {[%clk 0:01:42.4]} 17... cxd4 {[%clk 0:01:03.9]} 18. exd4
{[%clk 0:01:39.9]} 18... Nb6 {[%clk 0:00:46.3]} 19. Qe3 {[%clk 0:01:09.9]} 19...
Rh8 {[%clk 0:00:34.7]} 20. Rxh8 {[%clk 0:01:06.8]} 20... Qxh8 {[%clk 0:00:35.4]}
21. f6+ {[%clk 0:01:06]} 21... Bxf6 {[%clk 0:00:23.6]} 22. Nxf6 {[%clk
0:01:05.5]} 22... Qh2 {[%clk 0:00:12.1]} 23. g5 {[%clk 0:00:48.8]} 23... Nd7
{[%clk 0:00:10.5]} 24. Qf3 {[%clk 0:00:28.8]} 24... Qh4 {[%clk 0:00:07.4]} 25.
Ne4 {[%clk 0:00:21.1]} 25... Qh5 {[%clk 0:00:03.5]} 26. Qg2 {[%clk 0:00:14.7]}
26... Qh4 {[%clk 0:00:03.3]} 27. Rh1 {[%clk 0:00:12.1]} 27... Qf4+ {[%clk
0:00:03.5]} 28. Kb1 {[%clk 0:00:11.7]} 28... e5 {[%clk 0:00:03.4]} 29. d5 {[%clk
0:00:08.5]} 29... Nb6 {[%clk 0:00:02.4]} 30. Rf1 {[%clk 0:00:07.1]} 30... Qe3
{[%clk 0:00:01.9]} 31. Rf3 {[%clk 0:00:05.2]} 31... Qd4 {[%clk 0:00:02.3]} 32.
Nf6 {[%clk 0:00:03.4]} 32... Bd7 {[%clk 0:00:02]} 33. Qh2 {[%clk 0:00:02.2]}
33... Rh8 {[%clk 0:00:01.7]} 0-1

[Event "*** Titled Tuesday Blitz"]
[Site "Chess.com"]
[Date "2020.05.12"]
[Round "5"]
[White "Hippotaner"]
[Black "maciek_92"]
[Result "0-1"]
[WhiteElo "2358"]
[BlackElo "2647"]
[TimeControl "180+1"]
[EndTime "10:55:44 PDT"]
[Termination "maciek_92 won by checkmate"]

1. e4 {[%clk 0:03:00.9]} 1... c5 {[%clk 0:02:59.8]} 2. Nf3 {[%clk 0:03:00.7]}
2... e6 {[%clk 0:02:58.7]} 3. d3 {[%clk 0:02:55.3]} 3... Nc6 {[%clk 0:02:55.5]}
4. g3 {[%clk 0:02:54.9]} 4... d5 {[%clk 0:02:55.4]} 5. Nbd2 {[%clk 0:02:54.7]}
5... Bd6 {[%clk 0:02:52.1]} 6. Bg2 {[%clk 0:02:54.6]} 6... Nge7 {[%clk
0:02:52.4]} 7. O-O {[%clk 0:02:54.6]} 7... O-O {[%clk 0:02:52]} 8. Nh4 {[%clk
0:02:52.7]} 8... f6 {[%clk 0:02:23.8]} 9. f4 {[%clk 0:02:51.3]} 9... Qc7 {[%clk
0:02:09]} 10. c3 {[%clk 0:02:50.6]} 10... b5 {[%clk 0:02:08.2]} 11. Nhf3 {[%clk
0:02:30.9]} 11... c4 {[%clk 0:01:52.6]} 12. d4 {[%clk 0:02:25.7]} 12... dxe4
{[%clk 0:01:47.2]} 13. Nxe4 {[%clk 0:02:26.6]} 13... Bb7 {[%clk 0:01:44.8]} 14.
Bh3 {[%clk 0:02:19.9]} 14... Nd8 {[%clk 0:01:38]} 15. Qe2 {[%clk 0:02:17.3]}
15... Bd5 {[%clk 0:01:33.3]} 16. Bd2 {[%clk 0:02:16.6]} 16... f5 {[%clk
0:01:22.6]} 17. Nxd6 {[%clk 0:02:15.3]} 17... Qxd6 {[%clk 0:01:23.5]} 18. Rae1
{[%clk 0:02:14.4]} 18... Nf7 {[%clk 0:01:08.8]} 19. Bg2 {[%clk 0:02:13.7]} 19...
Rfe8 {[%clk 0:01:03.9]} 20. Ne5 {[%clk 0:02:13.8]} 20... Nxe5 {[%clk 0:01:03.3]}
21. fxe5 {[%clk 0:02:13.2]} 21... Qc6 {[%clk 0:01:02.7]} 22. Bxd5 {[%clk
0:02:12.4]} 22... Nxd5 {[%clk 0:01:02.4]} 23. g4 {[%clk 0:02:03.4]} 23... f4
{[%clk 0:00:40]} 24. Bxf4 {[%clk 0:02:00.5]} 24... Rf8 {[%clk 0:00:40.3]} 25.
Bd2 {[%clk 0:01:58.9]} 25... Qd7 {[%clk 0:00:38.4]} 26. Rxf8+ {[%clk 0:01:58.2]}
26... Rxf8 {[%clk 0:00:37.3]} 27. Rf1 {[%clk 0:01:58.8]} 27... Rf7 {[%clk
0:00:31.2]} 28. Rxf7 {[%clk 0:01:56.8]} 28... Qxf7 {[%clk 0:00:31.4]} 29. Qe4
{[%clk 0:01:45.7]} 29... a5 {[%clk 0:00:28]} 30. a3 {[%clk 0:01:43.3]} 30... Qb7
{[%clk 0:00:18.5]} 31. h4 {[%clk 0:01:37.3]} 31... Qe7 {[%clk 0:00:18.4]} 32.
Bg5 {[%clk 0:01:35.1]} 32... Qf7 {[%clk 0:00:18.6]} 33. Kg2 {[%clk 0:01:33.7]}
33... Qb7 {[%clk 0:00:17.2]} 34. Kg1 {[%clk 0:01:33.2]} 34... b4 {[%clk
0:00:16.9]} 35. axb4 {[%clk 0:01:33]} 35... axb4 {[%clk 0:00:17.5]} 36. cxb4
{[%clk 0:01:18]} 36... Qxb4 {[%clk 0:00:16.9]} 37. Qe2 {[%clk 0:01:18.2]} 37...
Qb3 {[%clk 0:00:16.2]} 38. Kg2 {[%clk 0:01:15.1]} 38... h6 {[%clk 0:00:15.3]}
39. Bc1 {[%clk 0:01:11.9]} 39... Qb7 {[%clk 0:00:13.9]} 40. Qf3 {[%clk
0:01:08.8]} 40... Qb4 {[%clk 0:00:13.8]} 41. g5 {[%clk 0:01:07.8]} 41... hxg5
{[%clk 0:00:12.9]} 42. hxg5 {[%clk 0:01:07.3]} 42... g6 {[%clk 0:00:06.5]} 43.
Qe4 {[%clk 0:01:04.4]} 43... Kg7 {[%clk 0:00:05.2]} 44. Qg4 {[%clk 0:01:02.8]}
44... Qe7 {[%clk 0:00:05.1]} 45. Qe2 {[%clk 0:01:00.2]} 45... Qb7 {[%clk
0:00:04.7]} 46. Qf3 {[%clk 0:00:57.1]} 46... Qb6 {[%clk 0:00:05.2]} 47. Qe4
{[%clk 0:00:54.4]} 47... Qb3 {[%clk 0:00:04.9]} 48. Qg4 {[%clk 0:00:52.9]} 48...
Qc2+ {[%clk 0:00:04.9]} 49. Kh3 {[%clk 0:00:52.1]} 49... Qxc1 {[%clk 0:00:05]}
50. Qxe6 {[%clk 0:00:52.3]} 50... Nf4+ {[%clk 0:00:05.4]} 51. Kh4 {[%clk
0:00:52.4]} 51... Nxe6 {[%clk 0:00:06.3]} 52. d5 {[%clk 0:00:52.2]} 52... Nd4
{[%clk 0:00:07.2]} 53. d6 {[%clk 0:00:52.1]} 53... Nf5+ {[%clk 0:00:08.1]} 54.
Kg4 {[%clk 0:00:52.1]} 54... Qe3 {[%clk 0:00:08.3]} 55. d7 {[%clk 0:00:51.9]}
55... Qg3# {[%clk 0:00:09.2]} 0-1

[Event "*** Titled Tuesday Blitz"]
[Site "Chess.com"]
[Date "2020.05.12"]
[Round "5"]
[White "NikolaGry"]
[Black "MaxLeto"]
[Result "1-0"]
[WhiteElo "2626"]
[BlackElo "2333"]
[TimeControl "180+1"]
[EndTime "10:55:44 PDT"]
[Termination "NikolaGry won by checkmate"]

1. e4 {[%clk 0:03:00.9]} 1... c5 {[%clk 0:02:59.5]} 2. Nf3 {[%clk 0:03:00.5]}
2... d6 {[%clk 0:02:59.6]} 3. Bb5+ {[%clk 0:03:00.2]} 3... Bd7 {[%clk
0:02:46.2]} 4. c4 {[%clk 0:02:59.2]} 4... Nc6 {[%clk 0:02:39.1]} 5. O-O {[%clk
0:02:57.9]} 5... e5 {[%clk 0:02:38.7]} 6. Nc3 {[%clk 0:02:56.5]} 6... g6 {[%clk
0:02:34.3]} 7. d3 {[%clk 0:02:51.7]} 7... Bg7 {[%clk 0:02:16.7]} 8. Bxc6 {[%clk
0:02:39.1]} 8... bxc6 {[%clk 0:02:14.5]} 9. a3 {[%clk 0:02:38.5]} 9... Rb8
{[%clk 0:02:09.5]} 10. b4 {[%clk 0:02:36.7]} 10... cxb4 {[%clk 0:01:41.5]} 11.
axb4 {[%clk 0:02:36.1]} 11... Rxb4 {[%clk 0:01:42.4]} 12. Rxa7 {[%clk
0:02:23.4]} 12... Qb8 {[%clk 0:01:42.9]} 13. Ra2 {[%clk 0:02:14.2]} 13... Nf6
{[%clk 0:01:30.6]} 14. Ba3 {[%clk 0:02:06.2]} 14... Rb7 {[%clk 0:01:15.8]} 15.
c5 {[%clk 0:01:48.7]} 15... Be6 {[%clk 0:00:57.8]} 16. Ra1 {[%clk 0:01:32]}
16... dxc5 {[%clk 0:00:51.4]} 17. Bxc5 {[%clk 0:01:28.6]} 17... Nd7 {[%clk
0:00:50.7]} 18. Ba3 {[%clk 0:01:26.5]} 18... Bf8 {[%clk 0:00:48.9]} 19. Qc1
{[%clk 0:01:20.2]} 19... Bc5 {[%clk 0:00:39.6]} 20. Bxc5 {[%clk 0:01:10.5]}
20... Nxc5 {[%clk 0:00:40.5]} 21. Qe3 {[%clk 0:00:55.1]} 21... Nb3 {[%clk
0:00:39.1]} 22. Rad1 {[%clk 0:00:49.4]} 22... O-O {[%clk 0:00:20.4]} 23. h3
{[%clk 0:00:46.4]} 23... Rd8 {[%clk 0:00:19.9]} 24. Qg5 {[%clk 0:00:42.8]} 24...
Qc7 {[%clk 0:00:16.9]} 25. Nxe5 {[%clk 0:00:38.1]} 25... Nd4 {[%clk 0:00:12.6]}
26. Ng4 {[%clk 0:00:31.6]} 26... Rb3 {[%clk 0:00:06.4]} 27. Nb1 {[%clk
0:00:26.9]} 27... Ne2+ {[%clk 0:00:04.2]} 28. Kh1 {[%clk 0:00:25.6]} 28... Rbxd3
{[%clk 0:00:03.4]} 29. Rxd3 {[%clk 0:00:24.1]} 29... Rxd3 {[%clk 0:00:04.3]} 30.
Nf6+ {[%clk 0:00:22.2]} 30... Kg7 {[%clk 0:00:04.4]} 31. Nh5+ {[%clk 0:00:21.4]}
31... Kf8 {[%clk 0:00:04.9]} 32. Qh6+ {[%clk 0:00:20.2]} 32... Ke7 {[%clk
0:00:04.4]} 33. Qg5+ {[%clk 0:00:20]} 33... Kf8 {[%clk 0:00:03.9]} 34. Nf6
{[%clk 0:00:19.7]} 34... h5 {[%clk 0:00:02.4]} 35. Qh6+ {[%clk 0:00:15.1]} 35...
Ke7 {[%clk 0:00:02.8]} 36. Nh7 {[%clk 0:00:15.2]} 36... Nf4 {[%clk 0:00:02.4]}
37. Qf8+ {[%clk 0:00:13]} 37... Kd7 {[%clk 0:00:03]} 38. Nf6# {[%clk 0:00:13.1]}
1-0

[Event "*** Titled Tuesday Blitz"]
[Site "Chess.com"]
[Date "2020.05.12"]
[Round "5"]
[White "Snegokhod"]
[Black "L_lorenzo"]
[Result "1-0"]
[WhiteElo "2543"]
[BlackElo "2233"]
[TimeControl "180+1"]
[EndTime "10:55:45 PDT"]
[Termination "Snegokhod won on time"]

1. e4 {[%clk 0:02:58.2]} 1... c5 {[%clk 0:02:59.8]} 2. Nf3 {[%clk 0:02:56.7]}
2... e6 {[%clk 0:02:58.1]} 3. d3 {[%clk 0:02:56.4]} 3... Nc6 {[%clk 0:02:57.8]}
4. Nbd2 {[%clk 0:02:57]} 4... Nf6 {[%clk 0:02:54.6]} 5. g3 {[%clk 0:02:57.5]}
5... d5 {[%clk 0:02:54.9]} 6. Bg2 {[%clk 0:02:57.5]} 6... dxe4 {[%clk
0:02:53.7]} 7. dxe4 {[%clk 0:02:57.1]} 7... Qc7 {[%clk 0:02:51.9]} 8. O-O {[%clk
0:02:56]} 8... Be7 {[%clk 0:02:51.5]} 9. Re1 {[%clk 0:02:54.8]} 9... O-O {[%clk
0:02:44.6]} 10. e5 {[%clk 0:02:54.8]} 10... Nd7 {[%clk 0:02:35.6]} 11. Qe2
{[%clk 0:02:53.8]} 11... b6 {[%clk 0:02:33.9]} 12. h4 {[%clk 0:02:51.5]} 12...
h6 {[%clk 0:02:32.7]} 13. c3 {[%clk 0:02:45.9]} 13... Bb7 {[%clk 0:02:33]} 14.
Nc4 {[%clk 0:02:38]} 14... Rfd8 {[%clk 0:02:31.9]} 15. Bf4 {[%clk 0:02:36.6]}
15... Nf8 {[%clk 0:02:23.3]} 16. h5 {[%clk 0:02:34.7]} 16... Ba6 {[%clk
0:02:21.5]} 17. Qe4 {[%clk 0:02:34.2]} 17... Bxc4 {[%clk 0:02:06.9]} 18. Qxc4
{[%clk 0:02:33.8]} 18... Rac8 {[%clk 0:01:57.9]} 19. Qe4 {[%clk 0:02:31.5]}
19... b5 {[%clk 0:01:54.4]} 20. a4 {[%clk 0:02:29.4]} 20... b4 {[%clk 0:01:51]}
21. Bf1 {[%clk 0:02:23.6]} 21... a5 {[%clk 0:01:39.8]} 22. Bb5 {[%clk 0:02:18]}
22... Na7 {[%clk 0:01:37.7]} 23. Bc4 {[%clk 0:02:17.8]} 23... bxc3 {[%clk
0:01:31.2]} 24. bxc3 {[%clk 0:02:17.4]} 24... Rb8 {[%clk 0:01:31.4]} 25. Reb1
{[%clk 0:02:08.7]} 25... Rxb1+ {[%clk 0:01:02.8]} 26. Rxb1 {[%clk 0:02:08.3]}
26... Rb8 {[%clk 0:01:02.9]} 27. Kg2 {[%clk 0:02:02.6]} 27... Rxb1 {[%clk
0:01:02]} 28. Qxb1 {[%clk 0:02:02.6]} 28... Nd7 {[%clk 0:00:45.7]} 29. Qe4
{[%clk 0:01:54.8]} 29... Qc6 {[%clk 0:00:35.6]} 30. Qxc6 {[%clk 0:01:46.5]}
30... Nxc6 {[%clk 0:00:35.4]} 31. Bb5 {[%clk 0:01:47.1]} 31... Ncb8 {[%clk
0:00:33]} 32. Kf1 {[%clk 0:01:41.5]} 32... Nb6 {[%clk 0:00:32.9]} 33. Nd2 {[%clk
0:01:36.9]} 33... Nd5 {[%clk 0:00:29.8]} 34. c4 {[%clk 0:01:27.7]} 34... Nxf4
{[%clk 0:00:28.7]} 35. gxf4 {[%clk 0:01:27.7]} 35... Kf8 {[%clk 0:00:28.9]} 36.
Nb3 {[%clk 0:01:26.5]} 36... f6 {[%clk 0:00:23.3]} 37. Nxa5 {[%clk 0:01:24.9]}
37... fxe5 {[%clk 0:00:21.9]} 38. fxe5 {[%clk 0:01:24.8]} 38... Bg5 {[%clk
0:00:21.3]} 39. Nb7 {[%clk 0:01:14.5]} 39... Bf4 {[%clk 0:00:16.9]} 40. Nxc5
{[%clk 0:01:14.6]} 40... Bxe5 {[%clk 0:00:16.7]} 41. a5 {[%clk 0:01:09.2]} 41...
Ke7 {[%clk 0:00:14]} 42. a6 {[%clk 0:01:09.4]} 42... Nxa6 {[%clk 0:00:10.8]} 43.
Bxa6 {[%clk 0:01:06.3]} 43... Bd4 {[%clk 0:00:10.3]} 44. Nd3 {[%clk 0:01:01.8]}
44... Kf6 {[%clk 0:00:09.7]} 45. Bb7 {[%clk 0:00:58.3]} 45... Kg5 {[%clk
0:00:08.2]} 46. Bf3 {[%clk 0:00:58]} 46... e5 {[%clk 0:00:07.3]} 47. c5 {[%clk
0:00:55.2]} 47... Kf5 {[%clk 0:00:07.1]} 48. c6 {[%clk 0:00:54.8]} 48... Bb6
{[%clk 0:00:05.9]} 49. Nc5 {[%clk 0:00:54.9]} 1-0

[Event "*** Titled Tuesday Blitz"]
[Site "Chess.com"]
[Date "2020.05.12"]
[Round "5"]
[White "mbojan"]
[Black "TudorAnton"]
[Result "1-0"]
[WhiteElo "2679"]
[BlackElo "2483"]
[TimeControl "180+1"]
[EndTime "10:55:46 PDT"]
[Termination "mbojan won by resignation"]

1. e4 {[%clk 0:03:00.9]} 1... e5 {[%clk 0:02:59.4]} 2. Nf3 {[%clk 0:03:00.1]}
2... Nc6 {[%clk 0:02:59.2]} 3. Bb5 {[%clk 0:03:00]} 3... a6 {[%clk 0:02:58.2]}
4. Bxc6 {[%clk 0:03:00.4]} 4... dxc6 {[%clk 0:02:57.8]} 5. d4 {[%clk 0:03:00.8]}
5... exd4 {[%clk 0:02:53.8]} 6. Qxd4 {[%clk 0:03:01.7]} 6... Qxd4 {[%clk
0:02:53.4]} 7. Nxd4 {[%clk 0:03:02.6]} 7... c5 {[%clk 0:02:53.9]} 8. Ne2 {[%clk
0:03:02.1]} 8... f6 {[%clk 0:02:48.4]} 9. Nbc3 {[%clk 0:03:01.9]} 9... Be6
{[%clk 0:02:48.1]} 10. f3 {[%clk 0:03:00]} 10... O-O-O {[%clk 0:02:47.7]} 11.
Be3 {[%clk 0:02:59.9]} 11... b6 {[%clk 0:02:46.9]} 12. Kf2 {[%clk 0:02:59.3]}
12... Ne7 {[%clk 0:02:46.5]} 13. Nf4 {[%clk 0:02:58.5]} 13... Bf7 {[%clk
0:02:46.2]} 14. Rad1 {[%clk 0:02:57.8]} 14... Ng6 {[%clk 0:02:43.2]} 15. Rxd8+
{[%clk 0:02:55.5]} 15... Kxd8 {[%clk 0:02:44.1]} 16. Rd1+ {[%clk 0:02:54.9]}
16... Kc8 {[%clk 0:02:43.9]} 17. Nfd5 {[%clk 0:02:51.2]} 17... Bd6 {[%clk
0:02:43.4]} 18. Nxb6+ {[%clk 0:02:50.2]} 18... cxb6 {[%clk 0:02:39]} 19. Rxd6
{[%clk 0:02:49.6]} 19... Kc7 {[%clk 0:02:37.3]} 20. Rd1 {[%clk 0:02:44.5]} 20...
Re8 {[%clk 0:02:33]} 21. g3 {[%clk 0:02:33.4]} 21... Kc6 {[%clk 0:02:32.6]} 22.
a3 {[%clk 0:02:20.9]} 22... Ne5 {[%clk 0:02:32.6]} 23. Ne2 {[%clk 0:02:16.1]}
23... Bh5 {[%clk 0:02:26.9]} 24. g4 {[%clk 0:02:14.3]} 24... Bf7 {[%clk
0:02:19.7]} 25. Bf4 {[%clk 0:02:09.8]} 25... Nc4 {[%clk 0:02:16]} 26. b3 {[%clk
0:02:06]} 26... Ne5 {[%clk 0:02:06]} 27. Bxe5 {[%clk 0:02:04.9]} 27... fxe5
{[%clk 0:02:01.6]} 28. Ke3 {[%clk 0:02:05]} 28... Be6 {[%clk 0:01:54.8]} 29. Ng3
{[%clk 0:02:03.6]} 29... g6 {[%clk 0:01:53.7]} 30. h4 {[%clk 0:02:03.3]} 30...
Rf8 {[%clk 0:01:52.8]} 31. h5 {[%clk 0:02:02.3]} 31... a5 {[%clk 0:01:43]} 32.
hxg6 {[%clk 0:01:29.9]} 32... hxg6 {[%clk 0:01:43.9]} 33. Rh1 {[%clk 0:01:30]}
33... a4 {[%clk 0:01:33.5]} 34. bxa4 {[%clk 0:01:27.4]} 34... Ra8 {[%clk
0:01:33.1]} 35. Rh6 {[%clk 0:01:27.5]} 35... Bf7 {[%clk 0:01:32.2]} 36. Rh7
{[%clk 0:01:26.8]} 36... Be8 {[%clk 0:01:25.8]} 37. Ne2 {[%clk 0:00:46.7]} 37...
Rxa4 {[%clk 0:01:23.4]} 38. Nc3 {[%clk 0:00:44.4]} 38... Rxa3 {[%clk 0:01:23.3]}
39. Kd2 {[%clk 0:00:44.7]} 39... b5 {[%clk 0:01:20.9]} 40. Re7 {[%clk
0:00:39.7]} 40... b4 {[%clk 0:01:16.2]} 41. Nd5 {[%clk 0:00:31.6]} 41... Bd7
{[%clk 0:01:16.1]} 42. Ne3 {[%clk 0:00:29.6]} 42... Kd6 {[%clk 0:00:48.6]} 43.
Rg7 {[%clk 0:00:28]} 43... Be6 {[%clk 0:00:48.3]} 44. Rxg6 {[%clk 0:00:25.9]}
44... Ke7 {[%clk 0:00:48.6]} 45. Rg7+ {[%clk 0:00:22.8]} 45... Kf6 {[%clk
0:00:48.5]} 46. Rc7 {[%clk 0:00:22.5]} 46... c4 {[%clk 0:00:48.9]} 47. Nxc4
{[%clk 0:00:16.9]} 47... Rxf3 {[%clk 0:00:49.1]} 48. Ne3 {[%clk 0:00:17.2]}
48... Rf4 {[%clk 0:00:47.9]} 49. Kd3 {[%clk 0:00:12.2]} 49... Bxg4 {[%clk
0:00:47.4]} 50. Nxg4+ {[%clk 0:00:12.1]} 50... Rxg4 {[%clk 0:00:48.3]} 51. Rb7
{[%clk 0:00:11.6]} 51... Rg3+ {[%clk 0:00:48.3]} 52. Kd2 {[%clk 0:00:10.1]}
52... Rg2+ {[%clk 0:00:46.6]} 53. Kc1 {[%clk 0:00:10.5]} 53... Kg5 {[%clk
0:00:43.4]} 54. Rg7+ {[%clk 0:00:10.2]} 1-0

[Event "*** Titled Tuesday Blitz"]
[Site "Chess.com"]
[Date "2020.05.12"]
[Round "5"]
[White "Anna_ChessMate"]
[Black "Kopytkin"]
[Result "1-0"]
[WhiteElo "2499"]
[BlackElo "2342"]
[TimeControl "180+1"]
[EndTime "10:55:46 PDT"]
[Termination "Anna_ChessMate won on time"]

1. d4 {[%clk 0:03:00.9]} 1... d5 {[%clk 0:02:58.8]} 2. c4 {[%clk 0:02:54.2]}
2... c6 {[%clk 0:02:58.6]} 3. Nf3 {[%clk 0:02:50.1]} 3... Nf6 {[%clk 0:02:58.6]}
4. e3 {[%clk 0:02:50.7]} 4... a6 {[%clk 0:02:55.5]} 5. c5 {[%clk 0:02:49.2]}
5... g6 {[%clk 0:02:50.3]} 6. Nc3 {[%clk 0:02:49.6]} 6... Bg7 {[%clk 0:02:50.5]}
7. Ne5 {[%clk 0:02:49.7]} 7... Nfd7 {[%clk 0:02:45.4]} 8. f4 {[%clk 0:02:49.3]}
8... O-O {[%clk 0:02:44.4]} 9. Bd3 {[%clk 0:02:48.7]} 9... f6 {[%clk 0:02:44.3]}
10. Nxg6 {[%clk 0:02:26.7]} 10... e5 {[%clk 0:01:44.1]} 11. Nxf8 {[%clk
0:02:23.9]} 11... Qxf8 {[%clk 0:01:43.4]} 12. fxe5 {[%clk 0:02:22]} 12... fxe5
{[%clk 0:01:43.7]} 13. Rf1 {[%clk 0:02:20.8]} 13... Qe7 {[%clk 0:01:43.9]} 14.
Qh5 {[%clk 0:02:14.4]} 14... Nf6 {[%clk 0:01:30.9]} 15. Qxe5 {[%clk 0:02:12.2]}
15... Qxe5 {[%clk 0:01:29.1]} 16. dxe5 {[%clk 0:02:13.1]} 16... Ng4 {[%clk
0:01:28.5]} 17. Bf5 {[%clk 0:02:10.6]} 17... Bxf5 {[%clk 0:01:23.9]} 18. Rxf5
{[%clk 0:02:11.5]} 18... Nxe5 {[%clk 0:01:16.9]} 19. e4 {[%clk 0:02:09]} 19...
d4 {[%clk 0:01:13.1]} 20. Na4 {[%clk 0:02:03.7]} 20... Nbd7 {[%clk 0:01:09.8]}
21. Bg5 {[%clk 0:02:00.7]} 21... Re8 {[%clk 0:01:06.3]} 22. O-O-O {[%clk
0:01:59.8]} 22... Nc4 {[%clk 0:00:59.9]} 23. b3 {[%clk 0:01:59.3]} 23... Na3
{[%clk 0:00:43.8]} 24. e5 {[%clk 0:01:53.6]} 24... Rxe5 {[%clk 0:00:31.7]} 25.
Rxe5 {[%clk 0:01:52.9]} 25... Bxe5 {[%clk 0:00:31.9]} 26. g3 {[%clk 0:01:52.4]}
26... Nb5 {[%clk 0:00:31.5]} 27. Bf4 {[%clk 0:01:49.8]} 27... Bxf4+ {[%clk
0:00:25.2]} 28. gxf4 {[%clk 0:01:49.6]} 28... Nf6 {[%clk 0:00:26.1]} 29. Kd2
{[%clk 0:01:45.7]} 29... Ne4+ {[%clk 0:00:25.3]} 30. Kc2 {[%clk 0:01:42.4]}
30... Kf7 {[%clk 0:00:20]} 31. Rg1 {[%clk 0:01:40.8]} 31... Nf2 {[%clk
0:00:13.8]} 32. Nb2 {[%clk 0:01:39.1]} 32... Ne4 {[%clk 0:00:07]} 33. Nd3 {[%clk
0:01:38.5]} 33... Nbc3 {[%clk 0:00:05.7]} 34. a4 {[%clk 0:01:35.3]} 34... Kf6
{[%clk 0:00:05.1]} 35. Rg8 {[%clk 0:01:32.8]} 35... Nd5 {[%clk 0:00:05.4]} 36.
Rf8+ {[%clk 0:01:28.6]} 36... Kg6 {[%clk 0:00:04.6]} 37. f5+ {[%clk 0:01:27.7]}
37... Kg5 {[%clk 0:00:04.6]} 38. Rf7 {[%clk 0:01:20.7]} 38... Ne3+ {[%clk
0:00:04.8]} 39. Kc1 {[%clk 0:01:14.6]} 39... Nxf5 {[%clk 0:00:05.7]} 40. Rxb7
{[%clk 0:01:12.9]} 40... Nc3 {[%clk 0:00:05.1]} 41. Rb6 {[%clk 0:01:08.6]} 41...
Ne3 {[%clk 0:00:05.1]} 42. Rxc6 {[%clk 0:01:07.4]} 42... Kf5 {[%clk 0:00:06]}
43. Rd6 {[%clk 0:00:59.9]} 43... Ke4 {[%clk 0:00:06.1]} 44. Nf2+ {[%clk
0:01:00.2]} 44... Ke5 {[%clk 0:00:05]} 45. Rxa6 {[%clk 0:00:56.1]} 45... Kd5
{[%clk 0:00:04.5]} 46. b4 {[%clk 0:00:53.2]} 46... Kc4 {[%clk 0:00:04.8]} 47. c6
{[%clk 0:00:51]} 47... Na2+ {[%clk 0:00:05.1]} 48. Kd2 {[%clk 0:00:49.7]} 48...
Nxb4 {[%clk 0:00:04.4]} 49. c7 {[%clk 0:00:49.6]} 49... Nxa6 {[%clk 0:00:04.7]}
50. c8=Q+ {[%clk 0:00:49.6]} 50... Nc5 {[%clk 0:00:05.2]} 51. Nd3 {[%clk
0:00:49.1]} 1-0

[Event "*** Titled Tuesday Blitz"]
[Site "Chess.com"]
[Date "2020.05.12"]
[Round "5"]
[White "today_good_day"]
[Black "CalinGheorghiu"]
[Result "0-1"]
[WhiteElo "2091"]
[BlackElo "2315"]
[TimeControl "180+1"]
[EndTime "10:55:46 PDT"]
[Termination "CalinGheorghiu won on time"]

1. e4 {[%clk 0:02:59]} 1... c5 {[%clk 0:02:42]} 2. Nf3 {[%clk 0:02:58.4]} 2...
d6 {[%clk 0:02:41.4]} 3. d4 {[%clk 0:02:58.3]} 3... cxd4 {[%clk 0:02:41.7]} 4.
Nxd4 {[%clk 0:02:58.5]} 4... Nf6 {[%clk 0:02:41.7]} 5. Nc3 {[%clk 0:02:58.5]}
5... a6 {[%clk 0:02:41.8]} 6. h3 {[%clk 0:02:55.6]} 6... e5 {[%clk 0:02:37.8]}
7. Nde2 {[%clk 0:02:55.3]} 7... h5 {[%clk 0:02:33.6]} 8. Bg5 {[%clk 0:02:53]}
8... Be7 {[%clk 0:02:25.5]} 9. Ng3 {[%clk 0:02:45.9]} 9... g6 {[%clk 0:02:12.5]}
10. Bxf6 {[%clk 0:02:41]} 10... Bxf6 {[%clk 0:02:10.6]} 11. Nd5 {[%clk
0:02:38.6]} 11... Bg7 {[%clk 0:02:07.3]} 12. Bc4 {[%clk 0:02:32.6]} 12... Nc6
{[%clk 0:01:57.9]} 13. Qd3 {[%clk 0:02:27.6]} 13... O-O {[%clk 0:01:53.5]} 14.
O-O-O {[%clk 0:02:09.4]} 14... Be6 {[%clk 0:01:52.5]} 15. Ne2 {[%clk 0:01:54.6]}
15... b5 {[%clk 0:01:45]} 16. Bb3 {[%clk 0:01:49.7]} 16... Rc8 {[%clk
0:01:44.4]} 17. Kb1 {[%clk 0:01:47.6]} 17... Na5 {[%clk 0:01:28.1]} 18. Nec3
{[%clk 0:01:33.2]} 18... Nc4 {[%clk 0:01:26.5]} 19. Bxc4 {[%clk 0:01:26.7]}
19... bxc4 {[%clk 0:01:24.1]} 20. Qe2 {[%clk 0:01:22.3]} 20... f5 {[%clk
0:01:10.1]} 21. exf5 {[%clk 0:00:53.2]} 21... Bxf5 {[%clk 0:01:03.6]} 22. g4
{[%clk 0:00:51.4]} 22... hxg4 {[%clk 0:00:58.8]} 23. hxg4 {[%clk 0:00:51.1]}
23... Be6 {[%clk 0:00:58.6]} 24. Qe4 {[%clk 0:00:37]} 24... Qg5 {[%clk 0:00:48]}
25. Rh2 {[%clk 0:00:29.4]} 25... Rf7 {[%clk 0:00:36.4]} 26. Rdh1 {[%clk
0:00:27.7]} 26... Qxg4 {[%clk 0:00:33]} 27. Qe1 {[%clk 0:00:17.4]} 27... e4
{[%clk 0:00:29.1]} 28. Rg1 {[%clk 0:00:15.4]} 28... Qf5 {[%clk 0:00:28]} 29. Ne3
{[%clk 0:00:12.8]} 29... Qf6 {[%clk 0:00:22.9]} 30. Qc1 {[%clk 0:00:10.6]} 30...
Rb8 {[%clk 0:00:19.6]} 31. Rhg2 {[%clk 0:00:06.2]} 31... Qxc3 {[%clk 0:00:18.9]}
32. Nd1 {[%clk 0:00:03.9]} 32... Qd4 {[%clk 0:00:13.5]} 33. Rxg6 {[%clk
0:00:03.5]} 33... Rfb7 {[%clk 0:00:13.7]} 34. c3 {[%clk 0:00:02.5]} 34... Qd3+
{[%clk 0:00:11.2]} 35. Ka1 {[%clk 0:00:02.7]} 35... Bf5 {[%clk 0:00:11.6]} 36.
R6g5 {[%clk 0:00:01.2]} 36... Bh7 {[%clk 0:00:10.6]} 0-1